bitfinex/quotes_ETHUSD_20250403
["timestamp","ask_amount","ask_price","bid_price","bid_amount"]
[1743721881729,11.344,1804.7,1804.4,11.08371]
[1743721881929,11.344,1804.7,1804.5,5.54168]
[1743721882564,11.344,1804.7,1804.6,5.54139]
[1743721883765,5.334,1804.7,1804.6,5.54139]
[1743721883964,0.05513657,1804.9,1804.8,5.54078]
[1743721884155,0.05513657,1805.1,1804.9,5.54043]
[1743721884466,5.335,1805.0,1804.9,11.08076]
[1743721884854,5.335,1805.0,1804.9,5.54033]
[1743721885766,5.335,1805.0,1804.9,5.74643088]
[1743721887263,5.335,1805.0,1804.9,7.22544497]
[1743721888573,5.335,1805.1,1805.0,5.54016]
[1743721889066,5.335,1805.1,1805.0,5.74588219]
[1743721891190,5.335,1805.1,1805.0,0.20572219]
[1743721891371,11.66325,1805.1,1805.0,0.20572219]
[1743721891670,25.44405711,1805.1,1804.7,5.54099]
[1743721891860,10.28140929,1805.0,1804.7,5.54097]
[1743721892170,10.28140929,1805.0,1804.8,0.20569508]
[1743721892338,5.54047,1804.9,1804.6,5.54129]
[1743721892540,17.16564629,1804.8,1804.7,0.19035106]
[1743721892740,5.5411,1804.7,1804.3,11.08443]
[1743721893070,5.39013657,1804.6,1804.4,0.19086808]
[1743721893671,5.39013657,1804.6,1804.4,5.73278808]
[1743721894273,5.39013657,1804.6,1804.4,0.19086808]
[1743721894575,0.7884,1804.5,1804.4,0.19086808]
[1743721895686,5.335,1804.6,1804.5,5.5417]
[1743721895897,5.335,1804.6,1804.5,5.73239572]
[1743721896081,5.342,1804.6,1804.5,11.27409572]
[1743721897696,0.84353657,1804.9,1804.5,11.27409572]
[1743721897697,5.344,1804.7,1804.5,0.54099572]
[1743721897860,5.344,1804.7,1804.6,5.54139]
[1743721898057,5.344,1804.7,1804.6,5.73191338]
[1743721903592,5.344,1804.7,1804.6,0.19052338]
[1743721903777,6.1081,1804.7,1804.6,0.19052338]
[1743721903982,0.7641,1805.0,1804.9,5.54047]
[1743721904215,6.53064657,1805.0,1804.8,5.54073]
[1743721904590,6.53064657,1805.0,1804.9,0.19000647]
[1743721905283,6.53064657,1805.0,1804.7,11.08198]
[1743721905484,6.53064657,1805.0,1804.8,5.73079876]
[1743721906113,6.53064657,1805.0,1804.8,5.73094876]
[1743721906825,6.15423657,1805.0,1804.8,5.73080876]
[1743721907697,6.15423657,1805.0,1804.8,11.27145876]
[1743721908437,5.335,1805.0,1804.8,11.27145876]
[1743721908933,5.335,1805.0,1804.8,5.73080876]
[1743721909934,5.335,1805.0,1804.8,11.27145876]
[1743721910108,5.335,1805.0,1804.8,5.73080876]
[1743721910714,5.335,1805.0,1804.8,11.27147876]
[1743721911626,5.335,1805.0,1804.8,11.27149876]
[1743721911935,5.335,1805.0,1804.8,0.19017876]
[1743721912225,6.36150657,1804.9,1804.8,0.19017876]
[1743721912594,6.36150657,1804.9,1804.5,11.08318]
[1743721912912,12.37150657,1804.9,1804.6,5.73205171]
[1743721913117,12.31637,1804.9,1804.6,5.73205171]
[1743721913296,0.05513657,1804.8,1804.6,5.73205171]
[1743721916614,0.05513657,1804.8,1804.6,0.19081171]
[1743721916807,12.38300982,1804.9,1804.7,5.54099]
[1743721917008,5.335,1804.8,1804.7,5.54099]
[1743721917517,5.335,1804.8,1804.6,5.54126]
[1743721919415,5.335,1804.8,1804.7,5.54108]
[1743721919616,5.335,1804.8,1804.6,11.08252]
[1743721920117,5.335,1804.8,1804.6,5.54126]
[1743721920917,5.39013657,1804.8,1804.6,5.54126]
[1743721921117,5.335,1804.8,1804.6,5.54126]
[1743721921959,5.335,1804.8,1804.6,11.08252]
[1743721922109,6.01,1804.9,1804.8,5.54078]
[1743721922444,11.345,1804.9,1804.8,5.54078]
[1743721922820,11.345,1804.9,1804.8,5.89108]
[1743721923236,11.345,1804.9,1804.8,6.08257702]
[1743721923541,11.345,1804.9,1804.8,7.24494272]
[1743721924242,41.582,1805.1,1805.0,5.54016]
[1743721924442,46.917,1805.1,1805.0,5.54016]
[1743721924753,46.917,1805.1,1805.0,5.73131247]
[1743721927143,46.917,1805.1,1805.0,0.19115247]
[1743721927358,61.86395982,1805.1,1805.0,0.19115247]
[1743721927558,5.54033,1805.0,1804.7,5.54106]
[1743721927857,5.59546657,1805.0,1804.8,0.19050838]
[1743721928151,11.13580657,1805.0,1804.8,0.19050838]
[1743721928321,11.08067,1805.0,1804.7,5.54106]
[1743721928655,5.59560657,1804.9,1804.8,0.19005521]
[1743721929028,5.59560657,1804.9,1804.6,5.54125]
[1743721929227,5.59560657,1804.9,1804.7,0.19072183]
[1743721929432,5.59560657,1804.9,1804.6,5.54124]
[1743721929626,0.05513657,1804.9,1804.7,0.19072183]
[1743721929841,0.05513657,1804.9,1804.7,5.54105]
[1743721930043,8.01917951,1805.0,1804.8,0.19054953]
[1743721930444,13.55950951,1805.0,1804.8,0.19054953]
[1743721930647,7.96404294,1805.0,1804.7,5.54099]
[1743721930949,8.01917951,1805.0,1804.9,0.19037725]
[1743721931117,8.01917951,1805.0,1804.6,11.08263]
[1743721931317,11.13580657,1805.0,1804.6,11.08263]
[1743721931627,11.08067,1805.0,1804.7,0.19072183]
[1743721931950,5.59562657,1804.9,1804.6,5.54128]
[1743721932145,5.59562657,1804.9,1804.8,0.19054953]
[1743721932651,5.59562657,1804.9,1804.6,5.54128]
[1743721932952,5.59562657,1804.9,1804.8,0.19054953]
[1743721933153,6.34078,1804.8,1804.7,0.19072183]
[1743721933453,5.54182,1804.5,1804.2,5.54253]
[1743721933654,5.335,1804.4,1804.2,5.54253]
[1743721933820,5.335,1804.4,1804.3,5.54231]
[1743721934525,5.335,1804.4,1804.3,6.67957069]
[1743721938254,5.335,1804.4,1804.3,6.87172353]
[1743721938461,0.8,1804.9,1804.6,5.54139]
[1743721938633,5.335,1804.8,1804.7,11.08168]
[1743721938839,5.335,1804.8,1804.7,11.27314344]
[1743721939463,5.335,1804.8,1804.7,11.08168]
[1743721939641,5.335,1804.8,1804.7,5.73228344]
[1743721941078,5.335,1804.8,1804.7,0.19146344]
[1743721941474,5.335,1804.8,1804.7,5.54108]
[1743721941655,5.335,1804.8,1804.7,5.73254344]
[1743721941832,5.335,1804.8,1804.7,7.21022978]
[1743721942572,48.392,1805.1,1804.9,5.54046]
[1743721942745,5.335,1805.0,1804.8,5.54051]
[1743721944564,5.335,1805.0,1804.8,11.08119]
[1743721945336,5.335,1805.0,1804.8,5.54051]
[1743721947788,5.335,1805.0,1804.8,11.0812]
[1743721947974,5.335,1805.0,1804.9,5.54047]
[1743721948289,5.335,1805.0,1804.8,5.54051]
[1743721948745,5.335,1805.0,1804.8,5.49051]
[1743721951192,0.05513657,1804.9,1804.6,5.54132]
[1743721951401,0.05513657,1804.9,1804.5,0.3503]
[1743721951402,6.32107,1804.8,1804.5,5.54155]
[1743721951553,0.05513657,1804.7,1804.5,5.54155]
[1743721951891,5.334,1804.6,1804.5,5.54155]
[1743721953091,5.334,1804.6,1804.5,5.73352285]
[1743721956493,5.334,1804.6,1804.5,0.19197285]
[1743721956971,5.334,1804.6,1804.5,5.73367285]
[1743721957449,0.7859,1805.0,1804.5,1.86953313]
[1743721957768,52.926,1805.1,1805.0,5.54016]
[1743721958097,46.917,1805.1,1805.0,5.73044734]
[1743721959395,41.582,1805.1,1805.0,5.73044734]
[1743721959585,41.582,1805.1,1805.0,6.89256907]
[1743721963097,41.582,1805.1,1805.0,7.44256907]
[1743721963726,6.01,1805.5,1805.0,2.25270907]
[1743721963884,5.334,1805.3,1805.2,5.53943]
[1743721964226,5.334,1805.3,1805.2,5.72826085]
[1743721973291,5.334,1805.3,1805.2,6.85505894]
[1743721973721,0.7859,1805.6,1805.2,1.31562894]
[1743721974017,41.579,1805.8,1805.6,5.53822]
[1743721974018,42.3924,1805.8,1805.6,5.53822]
[1743721974225,5.333,1805.7,1805.6,11.07641]
[1743721974594,5.333,1805.7,1805.6,5.53819]
[1743721975201,42.3924,1805.8,1805.6,11.07638]
[1743721975404,42.3924,1805.8,1805.6,5.88849]
[1743721975405,5.333,1805.7,1805.6,5.88849]
[1743721976114,5.333,1805.7,1805.6,5.53819]
[1743721979710,41.579,1805.8,1805.7,5.53801]
[1743721980030,46.911,1805.8,1805.7,5.53801]
[1743721980227,41.579,1805.8,1805.7,7.60130662]
[1743721980415,5.53567,1806.5,1806.2,5.53648]
[1743721980416,0.8134,1806.3,1806.2,5.53648]
[1743721980623,5.332,1806.3,1806.2,5.53648]
[1743721980816,5.332,1806.3,1806.1,5.53667]
[1743721981017,5.332,1806.3,1806.2,5.53648]
[1743721981354,0.8134,1806.5,1806.2,5.53648]
[1743721981532,5.332,1806.3,1806.2,5.53648]
[1743721981826,0.86853657,1806.5,1806.3,5.536]
[1743721982007,5.332,1806.4,1806.3,5.536]
[1743721982632,5.332,1806.4,1806.2,11.07281]
[1743721982827,5.332,1806.4,1806.3,0.18158498]
[1743721983224,5.332,1806.4,1806.3,5.71775498]
[1743721987513,5.332,1806.4,1806.3,0.18158498]
[1743721987719,5.99431882,1806.4,1806.3,5.71775498]
[1743721988645,5.332,1806.4,1806.3,5.71775498]
[1743721991247,5.332,1806.4,1806.3,0.18158498]
[1743721991451,11.62177,1806.4,1806.3,0.18158498]
[1743721991741,5.53664,1806.2,1805.8,11.07523]
[1743721992046,0.05513657,1806.1,1805.9,0.17980441]
[1743721992254,5.329,1806.0,1805.9,0.17980441]
[1743721992414,6.0829,1806.0,1805.9,0.17980441]
[1743721993144,12.23379366,1806.0,1805.9,0.17980441]
[1743721993517,5.5376,1805.9,1805.5,5.5386]
[1743721993886,5.59284657,1805.8,1805.5,5.5386]
[1743721994037,0.05513657,1805.8,1805.5,5.53849]
[1743721994238,5.59273657,1805.9,1805.5,11.07699]
[1743721994552,12.91304659,1805.9,1805.5,11.07703]
[1743721994752,12.85791002,1805.9,1805.5,11.07701]
[1743721995048,7.32026002,1805.9,1805.5,11.07701]
[1743721995211,7.37539659,1805.9,1805.5,11.07701]
[1743721995412,12.91298659,1805.9,1805.5,11.07701]
[1743721995636,12.85785002,1805.9,1805.5,5.53849]
[1743721995811,5.59285657,1805.8,1805.5,5.53849]
[1743721996027,5.59285657,1805.8,1805.5,11.07694]
[1743721996229,5.53772,1805.8,1805.5,11.07694]
[1743721996548,0.05513657,1805.8,1805.5,11.07699]
[1743721996712,5.59298657,1805.8,1805.4,5.53892]
[1743721996919,6.88431023,1805.8,1805.4,11.07776]
[1743721997260,6.29195,1805.7,1805.4,11.07765]
[1743721997557,5.329,1805.6,1805.4,11.07765]
[1743721998154,5.329,1805.6,1805.5,0.1673237]
[1743722002477,5.329,1805.6,1805.5,5.7059537]
[1743722002876,0.05513657,1805.8,1805.6,5.53825]
[1743722003075,50.08914,1806.0,1805.8,5.5376]
[1743722003076,41.552,1806.0,1805.8,5.5376]
[1743722003279,5.33,1805.9,1805.8,5.8879]
[1743722004370,41.552,1806.0,1805.9,5.5374]
[1743722004683,46.882,1806.0,1805.9,5.5374]
[1743722007148,46.882,1806.0,1805.8,5.53758]
[1743722007349,52.944279,1806.0,1805.7,11.07588]
[1743722007675,52.944279,1806.0,1805.8,5.53769]
[1743722008481,52.944279,1806.0,1805.7,5.53791]
[1743722008683,52.944279,1806.0,1805.7,11.0758]
[1743722008984,52.944279,1806.0,1805.8,5.53766]
[1743722009482,52.944279,1806.0,1805.8,11.07525]
[1743722009683,52.944279,1806.0,1805.8,11.07519]
[1743722009885,52.944279,1806.0,1805.8,5.53759]
[1743722010054,52.944279,1806.0,1805.7,11.07586]
[1743722010246,52.944279,1806.0,1805.8,5.53759]
[1743722010674,52.944279,1806.0,1805.8,11.07517]
[1743722010980,52.944279,1806.0,1805.8,11.07519]
[1743722011282,52.944279,1806.0,1805.8,5.53758]
[1743722011459,52.944279,1806.0,1805.8,11.07517]
[1743722011664,52.944279,1806.0,1805.8,5.53758]
[1743722012198,52.944279,1806.0,1805.9,5.5374]
[1743722012785,52.944279,1806.0,1805.8,5.53758]
[1743722013099,52.944279,1806.0,1805.9,0.16597816]
[1743722015897,52.944279,1806.0,1805.9,5.70337816]
[1743722016098,47.7024,1806.0,1805.9,5.70337816]
[1743722016697,47.7024,1806.0,1805.9,0.16597816]
[1743722017196,53.23949,1806.0,1805.9,0.16597816]
[1743722017371,57.92557272,1806.0,1805.9,0.16597816]
[1743722017699,5.53741,1805.9,1805.6,11.07647]
[1743722017990,0.05513657,1805.9,1805.7,0.16492603]
[1743722018288,11.19971639,1805.9,1805.7,0.16492603]
[1743722018465,11.14457982,1805.9,1805.7,0.16492603]
[1743722018788,0.05513657,1805.8,1805.7,0.16492603]
[1743722019559,11.14457982,1805.9,1805.7,0.16492603]
[1743722019759,5.60710982,1805.9,1805.7,5.70293603]
[1743722020078,5.66224639,1805.9,1805.7,5.70293603]
[1743722021759,5.66224639,1805.9,1805.6,5.53819]
[1743722022066,5.66224639,1805.9,1805.7,0.16533669]
[1743722022385,5.66224639,1805.9,1805.7,5.53801]
[1743722022702,5.66224639,1805.9,1805.7,11.07594]
[1743722022860,5.66224639,1805.9,1805.8,0.16569841]
[1743722023066,5.66224639,1805.9,1805.7,11.07579]
[1743722023262,5.66224639,1805.9,1805.8,0.16569841]
[1743722023598,5.66224639,1805.9,1805.7,11.07579]
[1743722023909,5.66224639,1805.9,1805.8,0.16565735]
[1743722024093,5.66224639,1805.9,1805.8,5.53771]
[1743722024399,47.562,1806.0,1805.9,5.5374]
[1743722024564,5.329,1805.9,1805.8,11.24094735]
[1743722024765,5.329,1805.9,1805.8,11.07529]
[1743722025298,47.562,1806.0,1805.9,5.5374]
[1743722025459,52.891,1806.0,1805.9,7.198669]
[1743722026269,52.891,1806.0,1805.9,5.5374]
[1743722027501,46.881,1806.0,1805.9,5.5374]
[1743722028301,46.881,1806.0,1805.9,5.70288526]
[1743722028914,46.88,1806.0,1805.9,5.70288526]
[1743722029098,41.552,1806.0,1805.9,6.05318526]
[1743722029298,41.552,1806.0,1805.9,7.21226179]
[1743722029672,5.328,1806.1,1806.0,5.53709]
[1743722029999,5.328,1806.1,1806.0,5.70240318]
[1743722032191,11.67939,1806.1,1806.0,0.16531318]
[1743722032376,16.86959927,1806.1,1806.0,0.16531318]
[1743722032578,0.8146,1805.8,1805.5,5.53853]
[1743722032778,5.328,1805.7,1805.5,11.07702]
[1743722033004,5.328,1805.7,1805.6,5.70226854]
[1743722035824,5.328,1805.7,1805.6,6.05256854]
[1743722036121,5.328,1805.7,1805.6,7.21167439]
[1743722037606,5.328,1805.7,1805.6,7.76167439]
[1743722039106,5.328,1805.7,1805.6,7.81705048]
[1743722041689,11.337,1806.0,1805.9,5.5374]
[1743722041899,5.327,1806.0,1805.9,5.70206408]
[1743722042225,0.05513657,1806.2,1805.9,5.70206408]
[1743722042408,41.554,1806.4,1806.3,5.53617]
[1743722042716,46.881,1806.4,1806.3,5.69858565]
[1743722042909,46.881,1806.4,1806.3,0.16241565]
[1743722043111,46.881,1806.4,1806.2,11.07273]
[1743722043286,46.881,1806.4,1806.3,0.16241565]
[1743722043488,46.881,1806.4,1806.3,5.69858565]
[1743722050114,41.554,1806.4,1806.3,6.82207922]
[1743722050301,46.88,1806.4,1806.3,6.82207922]
[1743722053624,46.88,1806.4,1806.3,5.69858565]
[1743722053829,47.6594,1806.4,1806.3,5.69858565]
[1743722054817,46.88,1806.4,1806.3,5.69858565]
[1743722055018,41.554,1806.4,1806.3,6.04888565]
[1743722055226,46.879,1806.4,1806.3,8.31104422]
[1743722058509,5.325,1806.4,1806.3,8.31104422]
[1743722059934,5.325,1806.4,1806.3,7.96074422]
[1743722063835,5.325,1806.4,1806.3,6.24858565]
[1743722064031,6.096,1806.4,1806.3,5.69858565]
[1743722064627,5.325,1806.4,1806.3,6.04888565]
[1743722064823,5.325,1806.4,1806.3,6.6542417]
[1743722065022,5.325,1806.4,1806.3,7.87330087]
[1743722065805,5.325,1806.4,1806.3,7.81794482]
[1743722066910,5.325,1806.4,1806.3,7.87329967]
[1743722067440,1.2440172,1806.8,1806.6,11.07023]
[1743722067636,5.324,1806.7,1806.6,11.07023]
[1743722068118,0.771,1806.8,1806.6,11.07023]
[1743722068321,5.324,1806.7,1806.6,11.07023]
[1743722069237,5.324,1806.7,1806.6,5.5351]
[1743722073157,5.324,1806.7,1806.6,5.69035955]
[1743722074342,5.324,1806.7,1806.6,5.64035955]
[1743722075336,0.05,1806.9,1806.8,5.53464]
[1743722075496,0.05,1806.9,1806.8,6.13997845]
[1743722075628,0.05,1806.9,1806.8,6.64457869]
[1743722076658,0.05,1806.9,1806.8,6.58924024]
[1743722076826,0.05,1806.9,1806.8,7.80163726]
[1743722079154,0.05,1806.9,1806.8,7.85696894]
[1743722079663,0.05,1806.9,1806.8,7.80163726]
[1743722082064,0.05,1806.9,1806.8,7.85696905]
[1743722083061,0.05,1806.9,1806.8,7.80163726]
[1743722085071,0.05,1806.9,1806.8,7.45133726]
[1743722085234,0.05,1806.9,1806.8,6.23894024]
[1743722085429,0.05,1806.9,1806.8,0.15430024]
[1743722085634,6.37514,1806.9,1806.8,0.15430024]
[1743722085945,6.37514,1806.9,1806.6,5.53524]
[1743722086144,6.43027657,1806.9,1806.7,0.12253669]
[1743722086358,8.13654752,1806.9,1806.6,11.07035]
[1743722086668,2.60220752,1806.9,1806.7,0.12253669]
[1743722087171,2.54707095,1806.9,1806.8,0.12236477]
[1743722087343,0.8408,1806.9,1806.8,0.12236477]
[1743722088366,0.8408,1806.9,1806.8,5.65700477]
[1743722089277,0.8408,1806.9,1806.8,0.12236477]
[1743722091876,0.8408,1806.9,1806.6,11.07023]
[1743722092037,6.37514,1806.9,1806.8,0.12236477]
[1743722092243,7.01814866,1806.9,1806.8,0.12236477]
[1743722092439,7.07328523,1806.9,1806.6,5.53508]
[1743722092657,7.07328523,1806.9,1806.8,0.12236477]
[1743722092858,7.07328523,1806.9,1806.7,0.12253669]
[1743722093058,0.8174,1806.7,1806.3,5.53607]
[1743722093264,5.321,1806.6,1806.5,5.53545]
[1743722093541,5.321,1806.6,1806.4,11.07149]
[1743722093764,5.321,1806.6,1806.4,5.53574]
[1743722094671,5.321,1806.6,1806.4,11.07149]
[1743722094874,5.321,1806.6,1806.4,5.53572]
[1743722096277,5.321,1806.6,1806.4,5.53582]
[1743722096464,5.321,1806.6,1806.3,5.53604]
[1743722096653,5.37613657,1806.6,1806.3,5.53604]
[1743722096851,5.37613657,1806.6,1806.4,5.53574]
[1743722097264,5.321,1806.6,1806.5,5.53556]
[1743722097461,5.321,1806.6,1806.4,5.53574]
[1743722097663,5.321,1806.6,1806.3,5.53611]
[1743722097664,5.321,1806.6,1806.3,5.53608]
[1743722097843,0.8174,1806.5,1806.3,5.53608]
[1743722098150,0.8174,1806.5,1806.4,5.53587]
[1743722099045,5.321,1806.6,1806.4,11.07174]
[1743722099246,5.321,1806.6,1806.4,5.53587]
[1743722099482,5.322,1806.5,1806.4,6.639457]
[1743722101373,5.322,1806.5,1806.4,5.53587]
[1743722101674,5.322,1806.5,1806.3,5.53605]
[1743722101675,6.19453657,1806.5,1806.3,5.53605]
[1743722101849,6.19453657,1806.5,1806.2,5.53641]
[1743722102039,6.19453657,1806.5,1806.2,11.07278]
[1743722102243,6.19453657,1806.5,1806.3,5.53615]
[1743722102451,6.1394,1806.5,1806.2,5.53639]
[1743722102674,6.1394,1806.5,1806.3,5.53614]
[1743722102872,6.19453657,1806.5,1806.2,5.53633]
[1743722103174,5.53623,1806.3,1806.0,5.53693]
[1743722103368,0.8174,1806.2,1806.0,5.53693]
[1743722103587,5.321,1806.1,1806.0,5.53693]
[1743722104458,0.8174,1806.4,1806.3,5.53617]
[1743722104661,6.01,1806.5,1806.4,5.53587]
[1743722104970,5.321,1806.5,1806.4,5.53587]
[1743722105175,5.321,1806.5,1806.3,5.53614]
[1743722105560,5.321,1806.5,1806.3,11.07217]
[1743722105761,5.321,1806.5,1806.4,5.53587]
[1743722107579,5.321,1806.5,1806.3,5.53603]
[1743722107882,5.321,1806.5,1805.9,5.53736]
[1743722107883,5.53677,1806.2,1805.9,5.53736]
[1743722108052,6.0791,1806.1,1805.8,5.5376]
[1743722108879,5.53719,1806.0,1805.7,5.53792]
[1743722109177,17.15324,1806.1,1805.7,5.53788]
[1743722109385,6.29435,1806.0,1805.7,5.53788]
[1743722109587,0.05513657,1805.9,1805.7,5.53788]
[1743722109756,0.05513657,1805.9,1805.8,0.13079915]
[1743722109959,5.53818,1805.7,1805.3,5.53923]
[1743722110162,6.13423657,1805.6,1805.4,0.13148771]
[1743722110365,11.67265657,1805.6,1805.3,5.82670805]
[1743722110685,11.61752,1805.6,1805.4,0.13640425]
[1743722110855,0.05513657,1805.5,1805.4,0.13640425]
[1743722111054,0.05513657,1805.5,1805.3,5.82670805]
[1743722111254,0.05513657,1805.5,1805.4,0.13640425]
[1743722111651,0.05513657,1805.5,1805.3,5.53922]
[1743722111853,0.05513657,1805.5,1805.2,5.53941]
[1743722111854,5.59376657,1805.5,1805.4,0.13640425]
[1743722112162,0.05513657,1805.5,1805.2,11.07883]
[1743722112369,0.05513657,1805.5,1805.3,0.13657644]
[1743722113071,10.76518272,1805.6,1805.3,5.67581644]
[1743722113275,10.82031929,1805.6,1805.3,5.67581644]
[1743722113475,10.82031929,1805.6,1805.3,5.53924]
[1743722113654,16.35868929,1805.6,1805.4,0.13640425]
[1743722113999,12.569542,1805.6,1805.3,5.53924]
[1743722114186,12.569542,1805.6,1805.3,5.53913]
[1743722114484,12.569542,1805.6,1805.4,0.13640425]
[1743722114787,12.569542,1805.6,1805.3,5.53913]
[1743722114953,12.569542,1805.6,1805.2,5.53954]
[1743722114954,0.05513657,1805.5,1805.2,5.53954]
[1743722115286,0.05513657,1805.5,1805.3,0.13657644]
[1743722115463,0.05513657,1805.5,1805.3,5.67578644]
[1743722115664,16.30353272,1805.6,1805.3,5.67578644]
[1743722115876,18.48769199,1805.6,1805.3,5.67578644]
[1743722116279,0.05513657,1805.5,1805.3,0.13657644]
[1743722117291,0.05513657,1805.5,1805.3,5.67576644]
[1743722118490,0.05513657,1805.5,1805.3,5.67566644]
[1743722119675,0.05513657,1805.5,1805.3,11.07821]
[1743722119997,0.05513657,1805.5,1805.4,0.13640425]
[1743722120293,0.05513657,1805.5,1805.2,11.07884]
[1743722120468,0.05513657,1805.5,1805.2,11.07882]
[1743722120669,0.05513657,1805.5,1805.3,0.13657644]
[1743722121286,5.59380657,1805.5,1805.3,0.13657644]
[1743722121500,0.7571,1805.4,1805.3,0.13657644]
[1743722122467,17.06161272,1805.4,1805.3,0.13657644]
[1743722122672,20.06161272,1805.4,1805.3,0.13657644]
[1743722122873,20.06161272,1805.4,1804.8,11.08132]
[1743722122874,0.8266,1805.1,1804.8,11.08132]
[1743722123075,5.323,1805.0,1804.9,5.54047]
[1743722123372,5.323,1805.0,1804.9,5.6704407]
[1743722128189,6.01,1805.4,1805.3,5.53924]
[1743722128366,5.324,1805.4,1805.3,5.53924]
[1743722128566,0.88173657,1805.5,1805.4,5.53893]
[1743722128765,6.20573657,1805.5,1805.4,5.53893]
[1743722128972,6.20573657,1805.5,1805.4,5.66803958]
[1743722129604,42.3826,1805.7,1805.6,5.53832]
[1743722129779,47.7066,1805.7,1805.6,5.66708526]
[1743722129980,46.88,1805.7,1805.6,5.66708526]
[1743722130389,46.88,1805.7,1805.6,5.53832]
[1743722130784,46.88,1805.7,1805.5,11.07698]
[1743722131088,46.88,1805.7,1805.6,0.12876526]
[1743722132300,46.88,1805.7,1805.6,5.66708526]
[1743722133365,46.88,1805.7,1805.6,0.12876526]
[1743722133770,46.88,1805.7,1805.6,5.66708526]
[1743722134480,46.88,1805.7,1805.6,0.12876526]
[1743722134983,46.88,1805.7,1805.6,5.66708526]
[1743722135175,46.88,1805.7,1805.6,0.12876526]
[1743722135904,46.88,1805.7,1805.6,5.66708526]
[1743722136203,46.88,1805.7,1805.6,0.12876526]
[1743722136509,46.88,1805.7,1805.6,5.66708526]
[1743722137668,41.556,1805.7,1805.6,5.66708526]
[1743722138709,41.556,1805.7,1805.6,10.13794179]
[1743722139911,5.323,1805.8,1805.7,5.53801]
[1743722140317,5.323,1805.8,1805.7,5.66627563]
[1743722141418,0.7837,1806.1,1805.7,0.12826563]
[1743722141621,46.25008272,1806.2,1806.0,5.53681]
[1743722141779,5.323,1806.1,1806.0,5.53681]
[1743722142176,46.887,1806.2,1806.1,5.53679]
[1743722142399,46.887,1806.2,1806.1,6.08679]
[1743722142909,46.887,1806.2,1806.1,5.53679]
[1743722146998,46.887,1806.2,1806.1,5.88709]
[1743722147383,41.564,1806.2,1806.1,6.43709]
[1743722147585,41.564,1806.2,1806.1,7.63448]
[1743722148200,41.564,1806.2,1806.1,7.75702283]
[1743722155124,41.564,1806.2,1806.1,6.20933283]
[1743722158048,10.22077272,1806.8,1806.1,6.20933283]
[1743722158049,0.8094,1806.8,1806.4,0.55]
[1743722158334,6.1294,1807.0,1806.8,5.53464]
[1743722158528,6.18453657,1807.0,1806.8,5.53464]
[1743722158732,6.18453657,1807.0,1806.8,5.65466976]
[1743722159936,6.1294,1807.0,1806.8,5.65466976]
[1743722160435,6.18453657,1807.0,1806.8,5.65466976]
[1743722160799,6.34429,1806.8,1806.4,5.53576]
[1743722161110,0.8094,1806.6,1806.4,5.53576]
[1743722161323,5.37513657,1806.5,1806.3,5.53612]
[1743722161938,5.37513657,1806.5,1806.3,5.53602]
[1743722162237,5.32,1806.5,1806.4,5.53587]
[1743722162833,5.32,1806.5,1806.4,7.231693]
[1743722163011,41.544,1806.8,1806.6,5.53525]
[1743722163214,41.544,1806.8,1806.7,5.53495]
[1743722163531,0.05,1806.9,1806.8,5.53464]
[1743722164831,0.8594,1806.9,1806.8,5.53464]
[1743722166438,0.05,1806.9,1806.8,5.53464]
[1743722167418,0.8594,1806.9,1806.7,11.0698]
[1743722167612,0.8594,1806.9,1806.7,5.53485]
[1743722168048,0.91453657,1806.9,1806.7,5.53485]
[1743722169550,0.91453657,1806.9,1806.7,11.06969]
[1743722169748,0.91453657,1806.9,1806.8,5.53464]
[1743722169919,5.368,1806.9,1806.8,6.641588]
[1743722171318,5.368,1806.9,1806.8,5.53464]
[1743722176454,0.05,1806.9,1806.8,9.13998314]
[1743722177744,0.05,1806.9,1806.8,9.49028314]
[1743722177934,0.05,1806.9,1806.8,9.43494]
[1743722178336,6.7774,1807.4,1807.3,5.53311]
[1743722178535,41.543,1807.5,1807.3,5.53311]
[1743722178725,41.543,1807.5,1807.4,5.5328]
[1743722178926,46.861,1807.5,1807.4,5.5328]
[1743722179329,41.543,1807.5,1807.4,5.5328]
[1743722179558,46.861,1807.5,1807.4,6.639391]
[1743722179759,41.543,1807.5,1807.4,10.189391]
[1743722179957,46.86,1807.5,1807.4,10.539691]
[1743722181844,41.543,1807.5,1807.4,10.539691]
[1743722182454,41.543,1807.5,1807.4,10.59501401]
[1743722182687,41.543,1807.5,1807.4,10.539691]
[1743722182962,0.05,1807.9,1807.8,9.08158]
[1743722183261,0.05,1807.9,1807.8,10.577944]
[1743722184076,0.05,1807.9,1807.8,10.63325116]
[1743722185431,0.05,1807.9,1807.8,10.577944]
[1743722186874,0.05,1807.9,1807.8,5.53158]
[1743722187229,0.05,1807.9,1807.8,8.53158]
[1743722188445,0.05,1807.9,1807.8,9.08158]
[1743722189051,0.05,1807.9,1807.8,9.13688876]
[1743722189251,0.05,1807.9,1807.8,9.08158]
[1743722190736,0.05,1807.9,1807.6,5.53205]
[1743722190960,0.7684,1807.8,1807.7,5.53189]
[1743722191242,0.05,1807.9,1807.8,5.53158]
[1743722191648,0.05,1807.9,1807.7,5.53171]
[1743722191976,0.10513657,1807.9,1807.7,5.53188]
[1743722192291,0.05,1807.9,1807.7,5.53188]
[1743722192976,0.05,1807.9,1807.8,6.08158]
[1743722196382,0.7684,1807.8,1807.7,5.53176]
[1743722197781,0.7684,1807.8,1807.5,5.53241]
[1743722197986,0.82353657,1807.8,1807.6,5.53217]
[1743722198282,5.314,1807.7,1807.6,5.53217]